[Event "Early-Titled-Tuesday-Blitz-April-23-2024"]
[Site "Chess.com"]
[Date "2024.04.23"]
[Round "7"]
[White "ChessMA48"]
[Black "Happy1712Drummer"]
[Result "0-1"]
[WhiteElo "2298"]
[BlackElo "2508"]
[TimeControl "180+1"]
[EndTime "9:19:47 PDT"]
[Termination "Happy1712Drummer won by checkmate"]

1. d4 {[%clk 0:03:00.9]} 1... d5 {[%clk 0:02:58.4]} 2. Nf3 {[%clk 0:03:00.5]}
2... Nf6 {[%clk 0:02:56.9]} 3. c4 {[%clk 0:02:59.9]} 3... e6 {[%clk 0:02:57.2]}
4. cxd5 {[%clk 0:02:58.8]} 4... exd5 {[%clk 0:02:57.4]} 5. Bg5 {[%clk
0:02:58.8]} 5... Be7 {[%clk 0:02:56.4]} 6. Nc3 {[%clk 0:02:58.8]} 6... O-O
{[%clk 0:02:53.5]} 7. e3 {[%clk 0:02:57.9]} 7... Bf5 {[%clk 0:02:46.6]} 8. Bd3
{[%clk 0:02:56.3]} 8... Bxd3 {[%clk 0:02:40.6]} 9. Qxd3 {[%clk 0:02:57.2]} 9...
c6 {[%clk 0:02:41.2]} 10. O-O {[%clk 0:02:56.7]} 10... Nbd7 {[%clk 0:02:40.9]}
11. Rae1 {[%clk 0:02:54.8]} 11... Re8 {[%clk 0:02:40.5]} 12. Qf5 {[%clk
0:02:42.8]} 12... g6 {[%clk 0:02:35]} 13. Qh3 {[%clk 0:02:41.1]} 13... Nf8
{[%clk 0:02:26.4]} 14. Ne5 {[%clk 0:02:39]} 14... Ne6 {[%clk 0:02:26.3]} 15. Bh6
{[%clk 0:02:16.9]} 15... Ng7 {[%clk 0:02:12.1]} 16. g4 {[%clk 0:02:06.1]} 16...
Ne4 {[%clk 0:01:51.2]} 17. Qf3 {[%clk 0:01:47.5]} 17... f6 {[%clk 0:01:19.9]}
18. Nxe4 {[%clk 0:01:12.4]} 18... dxe4 {[%clk 0:01:15.1]} 19. Qxe4 {[%clk
0:00:59]} 19... fxe5 {[%clk 0:01:13.9]} 20. dxe5 {[%clk 0:00:55]} 20... Bg5
{[%clk 0:01:12]} 21. Rd1 {[%clk 0:00:54]} 21... Qe7 {[%clk 0:01:12.3]} 22. Qc4+
{[%clk 0:00:43.5]} 22... Kh8 {[%clk 0:01:11.3]} 23. Bxg7+ {[%clk 0:00:36.7]}
23... Qxg7 {[%clk 0:01:01.1]} 24. f4 {[%clk 0:00:37.6]} 24... Bd8 {[%clk
0:01:01.4]} 25. e6 {[%clk 0:00:35.7]} 25... Bb6 {[%clk 0:01:01.2]} 26. Rd7
{[%clk 0:00:32.5]} 26... Re7 {[%clk 0:00:58]} 27. Rfd1 {[%clk 0:00:30]} 27...
Rae8 {[%clk 0:00:55.4]} 28. Kg2 {[%clk 0:00:22.7]} 28... Qxb2+ {[%clk
0:00:54.4]} 29. R1d2 {[%clk 0:00:21.8]} 29... Qf6 {[%clk 0:00:54.5]} 30. g5
{[%clk 0:00:18.2]} 30... Qxe6 {[%clk 0:00:50.5]} 31. Qc3+ {[%clk 0:00:18.6]}
31... Kg8 {[%clk 0:00:51]} 32. R7d6 {[%clk 0:00:17.4]} 32... Qxe3 {[%clk
0:00:48.8]} 33. Qf6 {[%clk 0:00:17.3]} 33... Qg1+ {[%clk 0:00:45.3]} 34. Kh3
{[%clk 0:00:16.9]} 34... Re3+ {[%clk 0:00:43.4]} 35. Kh4 {[%clk 0:00:17.4]}
35... Qe1+ {[%clk 0:00:42.1]} 36. Kg4 {[%clk 0:00:17.5]} 36... R3e7 {[%clk
0:00:20.8]} 37. h4 {[%clk 0:00:14.1]} 37... Qg1+ {[%clk 0:00:18.6]} 38. Kh3
{[%clk 0:00:11.2]} 38... Re3# {[%clk 0:00:18.5]} 0-1

[Event "Early-Titled-Tuesday-Blitz-April-23-2024"]
[Site "Chess.com"]
[Date "2024.04.23"]
[Round "7"]
[White "Smiechu"]
[Black "jeetjain"]
[Result "0-1"]
[WhiteElo "2460"]
[BlackElo "2612"]
[TimeControl "180+1"]
[EndTime "9:19:48 PDT"]
[Termination "jeetjain won on time"]

1. e4 {[%clk 0:03:00.9]} 1... e6 {[%clk 0:02:46.9]} 2. d4 {[%clk 0:03:00.4]}
2... d5 {[%clk 0:02:47.2]} 3. Bd3 {[%clk 0:03:01.1]} 3... c5 {[%clk 0:02:41.6]}
4. exd5 {[%clk 0:02:55.9]} 4... Qxd5 {[%clk 0:02:38.8]} 5. Nf3 {[%clk
0:02:55.3]} 5... Nc6 {[%clk 0:02:33.6]} 6. c4 {[%clk 0:02:51.8]} 6... Qd8 {[%clk
0:02:31.7]} 7. d5 {[%clk 0:02:48.9]} 7... exd5 {[%clk 0:02:31.6]} 8. cxd5 {[%clk
0:02:49]} 8... Qxd5 {[%clk 0:02:31.3]} 9. O-O {[%clk 0:02:48]} 9... Be6 {[%clk
0:02:30.8]} 10. Nc3 {[%clk 0:02:46.5]} 10... Qd7 {[%clk 0:02:30.1]} 11. Qe2
{[%clk 0:02:28.8]} 11... Be7 {[%clk 0:02:25.6]} 12. Bf4 {[%clk 0:02:25.5]} 12...
Nf6 {[%clk 0:02:19.7]} 13. Rad1 {[%clk 0:02:24.9]} 13... Qc8 {[%clk 0:02:12.4]}
14. Ng5 {[%clk 0:02:19.2]} 14... Nd4 {[%clk 0:02:08.8]} 15. Qe3 {[%clk
0:02:07.6]} 15... O-O {[%clk 0:02:06.8]} 16. Rfe1 {[%clk 0:01:40.3]} 16... Re8
{[%clk 0:02:05.3]} 17. Nce4 {[%clk 0:01:31.4]} 17... Nd5 {[%clk 0:02:03.1]} 18.
Qg3 {[%clk 0:01:26.2]} 18... Nxf4 {[%clk 0:01:59.7]} 19. Qxf4 {[%clk 0:01:26.2]}
19... h6 {[%clk 0:01:54.6]} 20. Nxe6 {[%clk 0:01:19.3]} 20... Nxe6 {[%clk
0:01:55.5]} 21. Qf5 {[%clk 0:01:17.3]} 21... Nf8 {[%clk 0:01:47]} 22. Qf3 {[%clk
0:00:46.4]} 22... a6 {[%clk 0:01:43.2]} 23. Bc4 {[%clk 0:00:36.8]} 23... Ne6
{[%clk 0:01:43.2]} 24. Ng3 {[%clk 0:00:34.8]} 24... Bf6 {[%clk 0:01:41.8]} 25.
Nf5 {[%clk 0:00:29.8]} 25... Ng5 {[%clk 0:01:34.7]} 26. Nxh6+ {[%clk 0:00:21.1]}
26... Kh7 {[%clk 0:01:31.7]} 27. Qd3+ {[%clk 0:00:20]} 27... Kxh6 {[%clk
0:01:30.3]} 28. h4 {[%clk 0:00:19.9]} 28... Rxe1+ {[%clk 0:01:25.7]} 29. Rxe1
{[%clk 0:00:19.6]} 29... Ne6 {[%clk 0:01:25.1]} 30. h5 {[%clk 0:00:14.2]} 30...
Nd4 {[%clk 0:01:20.4]} 31. Bxf7 {[%clk 0:00:12.5]} 31... Qg4 {[%clk 0:01:18]}
32. Bg6 {[%clk 0:00:06.8]} 32... Rf8 {[%clk 0:01:10.5]} 33. f3 {[%clk 0:00:07]}
33... Qg3 {[%clk 0:01:09.7]} 34. Re4 {[%clk 0:00:05.7]} 34... Nxf3+ {[%clk
0:01:08.5]} 35. Qxf3 {[%clk 0:00:05.5]} 35... Bd4+ {[%clk 0:01:08.7]} 36. Kh1
{[%clk 0:00:04.8]} 36... Rxf3 {[%clk 0:01:08.6]} 37. gxf3 {[%clk 0:00:05]} 37...
Qxf3+ {[%clk 0:01:09.5]} 38. Kh2 {[%clk 0:00:05]} 38... Qf2+ {[%clk 0:01:08.5]}
39. Kh3 {[%clk 0:00:05.3]} 39... Qxb2 {[%clk 0:01:07]} 40. Re6 {[%clk
0:00:05.1]} 40... Kg5 {[%clk 0:01:04.7]} 41. Bf7 {[%clk 0:00:04.2]} 41... Qc3+
{[%clk 0:00:53.9]} 42. Kg2 {[%clk 0:00:03.7]} 42... Qd2+ {[%clk 0:00:50.7]} 43.
Kg3 {[%clk 0:00:03.6]} 43... Qd3+ {[%clk 0:00:50.4]} 44. Kg2 {[%clk 0:00:03.5]}
44... Kh4 {[%clk 0:00:50.3]} 45. Rg6 {[%clk 0:00:01.5]} 45... Qe2+ {[%clk
0:00:49.1]} 0-1

[Event "Early-Titled-Tuesday-Blitz-April-23-2024"]
[Site "Chess.com"]
[Date "2024.04.23"]
[Round "7"]
[White "Zarinur"]
[Black "KnightDuta"]
[Result "0-1"]
[WhiteElo "2509"]
[BlackElo "2749"]
[TimeControl "180+1"]
[EndTime "9:19:50 PDT"]
[Termination "KnightDuta won by resignation"]

1. e4 {[%clk 0:03:00.9]} 1... d5 {[%clk 0:03:00]} 2. exd5 {[%clk 0:02:59.7]}
2... Nf6 {[%clk 0:03:00.6]} 3. d4 {[%clk 0:02:59.7]} 3... Nxd5 {[%clk
0:03:01.2]} 4. c4 {[%clk 0:02:59.8]} 4... Nb6 {[%clk 0:03:00.4]} 5. Nc3 {[%clk
0:03:00.3]} 5... e5 {[%clk 0:03:00.7]} 6. d5 {[%clk 0:02:53.9]} 6... c6 {[%clk
0:03:00.8]} 7. Nf3 {[%clk 0:02:50.6]} 7... Bb4 {[%clk 0:03:00.6]} 8. Bd2 {[%clk
0:02:39.2]} 8... O-O {[%clk 0:02:59.1]} 9. Bd3 {[%clk 0:02:33.4]} 9... Bg4
{[%clk 0:02:28.6]} 10. Qc2 {[%clk 0:02:16.1]} 10... cxd5 {[%clk 0:01:39.4]} 11.
cxd5 {[%clk 0:01:58.2]} 11... Bxc3 {[%clk 0:01:26.8]} 12. Bxc3 {[%clk
0:01:55.4]} 12... Nxd5 {[%clk 0:01:08.1]} 13. O-O-O {[%clk 0:01:54.5]} 13...
Bxf3 {[%clk 0:00:31.7]} 14. gxf3 {[%clk 0:01:49.6]} 14... Qg5+ {[%clk
0:00:22.6]} 15. Kb1 {[%clk 0:01:28.1]} 15... Nxc3+ {[%clk 0:00:22.6]} 16. Qxc3
{[%clk 0:01:26.9]} 16... Nc6 {[%clk 0:00:22.2]} 17. Rdg1 {[%clk 0:01:17.9]}
17... Qf6 {[%clk 0:00:19.9]} 18. Rg4 {[%clk 0:01:10]} 18... Rac8 {[%clk
0:00:16]} 19. Rhg1 {[%clk 0:01:01.9]} 19... g6 {[%clk 0:00:15]} 20. Qd2 {[%clk
0:01:00]} 20... Nd4 {[%clk 0:00:14.8]} 21. Qh6 {[%clk 0:00:49.6]} 21... Qg7
{[%clk 0:00:13.2]} 22. Qh3 {[%clk 0:00:24.2]} 22... Rfd8 {[%clk 0:00:13]} 23.
Rg5 {[%clk 0:00:18]} 23... Ne6 {[%clk 0:00:12.9]} 24. Bxg6 {[%clk 0:00:08]}
24... Nxg5 {[%clk 0:00:12.1]} 25. Bxh7+ {[%clk 0:00:04.7]} 25... Qxh7+ {[%clk
0:00:11.3]} 26. Qxh7+ {[%clk 0:00:02.7]} 26... Kxh7 {[%clk 0:00:11.5]} 27. b3
{[%clk 0:00:03.2]} 0-1

[Event "Early-Titled-Tuesday-Blitz-April-23-2024"]
[Site "Chess.com"]
[Date "2024.04.23"]
[Round "7"]
[White "AlexeiShirov"]
[Black "MrVenky"]
[Result "0-1"]
[WhiteElo "2798"]
[BlackElo "2545"]
[TimeControl "180+1"]
[EndTime "9:19:53 PDT"]
[Termination "MrVenky won by resignation"]

1. e4 {[%clk 0:03:00.9]} 1... e5 {[%clk 0:02:59.2]} 2. Nf3 {[%clk 0:03:00]} 2...
Nc6 {[%clk 0:02:59.2]} 3. Bb5 {[%clk 0:02:59.8]} 3... a6 {[%clk 0:02:55.8]} 4.
Ba4 {[%clk 0:02:59.4]} 4... Nf6 {[%clk 0:02:55.6]} 5. O-O {[%clk 0:02:59.2]}
5... Bc5 {[%clk 0:02:55.4]} 6. c3 {[%clk 0:02:57.1]} 6... b5 {[%clk 0:02:55.2]}
7. Bb3 {[%clk 0:02:57]} 7... d6 {[%clk 0:02:53.8]} 8. d4 {[%clk 0:02:56]} 8...
Bb6 {[%clk 0:02:52.3]} 9. Be3 {[%clk 0:02:55.6]} 9... O-O {[%clk 0:02:47]} 10.
Nbd2 {[%clk 0:02:54.8]} 10... Bb7 {[%clk 0:02:45]} 11. h3 {[%clk 0:02:43]} 11...
h6 {[%clk 0:02:40]} 12. Re1 {[%clk 0:02:42]} 12... Nd7 {[%clk 0:02:27.1]} 13.
Nf1 {[%clk 0:02:41]} 13... Na5 {[%clk 0:02:19.3]} 14. Bc2 {[%clk 0:02:40.4]}
14... exd4 {[%clk 0:02:06.5]} 15. Nxd4 {[%clk 0:02:35.6]} 15... Nc4 {[%clk
0:02:03.7]} 16. Bc1 {[%clk 0:02:33.9]} 16... Qf6 {[%clk 0:02:01.8]} 17. Ng3
{[%clk 0:02:30.4]} 17... Nde5 {[%clk 0:01:43.9]} 18. b3 {[%clk 0:02:26.5]} 18...
Na5 {[%clk 0:01:40.1]} 19. Be3 {[%clk 0:02:20.7]} 19... Nac6 {[%clk 0:01:26.7]}
20. Ndf5 {[%clk 0:01:58.9]} 20... Bxe3 {[%clk 0:01:22.3]} 21. Rxe3 {[%clk
0:01:57.7]} 21... Qd8 {[%clk 0:01:00.7]} 22. Nh5 {[%clk 0:01:31]} 22... g6
{[%clk 0:00:59.7]} 23. Nxh6+ {[%clk 0:01:21.7]} 23... Kh7 {[%clk 0:00:59.4]} 24.
Ng4 {[%clk 0:01:15.1]} 24... Nxg4 {[%clk 0:00:46.6]} 25. Qxg4 {[%clk 0:01:12.7]}
25... Ne5 {[%clk 0:00:46.4]} 26. Qe2 {[%clk 0:01:11.2]} 26... gxh5 {[%clk
0:00:43.9]} 27. Qxh5+ {[%clk 0:01:10.1]} 27... Kg7 {[%clk 0:00:44]} 28. Rg3+
{[%clk 0:01:10.7]} 28... Ng6 {[%clk 0:00:43.9]} 29. e5 {[%clk 0:01:10.1]} 29...
Rh8 {[%clk 0:00:38.9]} 30. Rxg6+ {[%clk 0:01:06.1]} 30... fxg6 {[%clk
0:00:39.1]} 31. Qxg6+ {[%clk 0:01:04.9]} 31... Kf8 {[%clk 0:00:39.7]} 32. Qf5+
{[%clk 0:00:45.7]} 32... Kg7 {[%clk 0:00:39]} 33. Qg4+ {[%clk 0:00:44]} 33...
Kf8 {[%clk 0:00:38.6]} 34. Qf5+ {[%clk 0:00:39.7]} 34... Kg7 {[%clk 0:00:38.2]}
35. Re1 {[%clk 0:00:38.2]} 35... Qe7 {[%clk 0:00:35.3]} 36. Qg6+ {[%clk
0:00:27.1]} 36... Kf8 {[%clk 0:00:33.4]} 37. Be4 {[%clk 0:00:26.2]} 37... Qxe5
{[%clk 0:00:25.1]} 38. Re3 {[%clk 0:00:21.3]} 38... Bxe4 {[%clk 0:00:15.1]} 39.
Rxe4 {[%clk 0:00:21.3]} 39... Qg7 {[%clk 0:00:14.1]} 40. Qh6 {[%clk 0:00:21.7]}
40... Rxh6 {[%clk 0:00:13.5]} 0-1

[Event "Early-Titled-Tuesday-Blitz-April-23-2024"]
[Site "Chess.com"]
[Date "2024.04.23"]
[Round "7"]
[White "hakanazeri2"]
[Black "adotand"]
[Result "1/2-1/2"]
[WhiteElo "2542"]
[BlackElo "2922"]
[TimeControl "180+1"]
[EndTime "9:19:55 PDT"]
[Termination "Game drawn - insufficient material"]

1. Nf3 {[%clk 0:02:59.6]} 1... g6 {[%clk 0:02:59.9]} 2. c4 {[%clk 0:02:56.3]}
2... Bg7 {[%clk 0:03:00.5]} 3. Nc3 {[%clk 0:02:57.1]} 3... d6 {[%clk 0:03:01.1]}
4. e4 {[%clk 0:02:57.4]} 4... Nd7 {[%clk 0:03:01.8]} 5. d4 {[%clk 0:02:57.8]}
5... e5 {[%clk 0:03:02.5]} 6. Be3 {[%clk 0:02:57.4]} 6... Ngf6 {[%clk 0:03:03]}
7. h3 {[%clk 0:02:57.6]} 7... Qe7 {[%clk 0:03:02]} 8. d5 {[%clk 0:02:54.8]} 8...
Nc5 {[%clk 0:03:01.6]} 9. Qc2 {[%clk 0:02:54.7]} 9... a5 {[%clk 0:03:02.1]} 10.
Be2 {[%clk 0:02:49.8]} 10... Bd7 {[%clk 0:03:01.9]} 11. Nd2 {[%clk 0:02:49.6]}
11... c6 {[%clk 0:03:00.9]} 12. dxc6 {[%clk 0:02:44.5]} 12... Bxc6 {[%clk
0:02:58.3]} 13. Nd5 {[%clk 0:02:41.1]} 13... Bxd5 {[%clk 0:02:52.9]} 14. cxd5
{[%clk 0:02:40.8]} 14... O-O {[%clk 0:02:53.2]} 15. Bxc5 {[%clk 0:02:34.3]}
15... dxc5 {[%clk 0:02:54.1]} 16. Bb5 {[%clk 0:02:34.7]} 16... Bh6 {[%clk
0:02:48.2]} 17. Nc4 {[%clk 0:02:31]} 17... Nh5 {[%clk 0:02:48.2]} 18. g3 {[%clk
0:02:23.5]} 18... f5 {[%clk 0:02:47.1]} 19. d6 {[%clk 0:02:15.4]} 19... Qf6
{[%clk 0:02:46.7]} 20. Nb6 {[%clk 0:02:13.2]} 20... Rad8 {[%clk 0:02:42.7]} 21.
Nd7 {[%clk 0:02:02.8]} 21... Rxd7 {[%clk 0:02:43.2]} 22. Bxd7 {[%clk 0:02:03.3]}
22... fxe4 {[%clk 0:02:44.1]} 23. O-O {[%clk 0:01:49.7]} 23... Qxd6 {[%clk
0:02:41.7]} 24. Rad1 {[%clk 0:01:48.1]} 24... Qf6 {[%clk 0:02:39.7]} 25. Qxe4
{[%clk 0:01:48]} 25... Qg5 {[%clk 0:02:24.7]} 26. Qd5+ {[%clk 0:01:24.5]} 26...
Kh8 {[%clk 0:02:24.3]} 27. Bg4 {[%clk 0:01:24.7]} 27... Nf6 {[%clk 0:02:21.3]}
28. Qxb7 {[%clk 0:01:23.8]} 28... e4 {[%clk 0:02:18.8]} 29. Qe7 {[%clk
0:01:16.7]} 29... Nxg4 {[%clk 0:01:47]} 30. Qxg5 {[%clk 0:01:14.2]} 30... Bxg5
{[%clk 0:01:47.9]} 31. hxg4 {[%clk 0:01:14.5]} 31... Bf6 {[%clk 0:01:48.8]} 32.
Rfe1 {[%clk 0:00:27.9]} 32... Bxb2 {[%clk 0:01:46.2]} 33. Rxe4 {[%clk
0:00:27.3]} 33... Bd4 {[%clk 0:01:46.9]} 34. Rdxd4 {[%clk 0:00:25.9]} 34... cxd4
{[%clk 0:01:47.8]} 35. Rxd4 {[%clk 0:00:26.8]} 35... Rc8 {[%clk 0:01:41.1]} 36.
Kg2 {[%clk 0:00:18.5]} 36... Rc2 {[%clk 0:01:40.4]} 37. Ra4 {[%clk 0:00:18.1]}
37... Rc5 {[%clk 0:01:40.9]} 38. f4 {[%clk 0:00:13.7]} 38... Kg7 {[%clk
0:01:41.4]} 39. g5 {[%clk 0:00:13.9]} 39... h6 {[%clk 0:01:41.1]} 40. gxh6+
{[%clk 0:00:14]} 40... Kxh6 {[%clk 0:01:42]} 41. Kf3 {[%clk 0:00:14.7]} 41...
Kh5 {[%clk 0:01:42.6]} 42. Ra3 {[%clk 0:00:09]} 42... Rb5 {[%clk 0:01:39.5]} 43.
Re3 {[%clk 0:00:07.8]} 43... Kh6 {[%clk 0:01:38.9]} 44. Kg4 {[%clk 0:00:07.9]}
44... Rb2 {[%clk 0:01:38.5]} 45. Ra3 {[%clk 0:00:07.9]} 45... Rb5 {[%clk
0:01:39.1]} 46. Rb3 {[%clk 0:00:08.4]} 46... Rd5 {[%clk 0:01:39.1]} 47. Re3
{[%clk 0:00:07.6]} 47... Rd2 {[%clk 0:01:39.1]} 48. Ra3 {[%clk 0:00:04.7]} 48...
Rd5 {[%clk 0:01:38.5]} 49. Kh4 {[%clk 0:00:03.8]} 49... Kg7 {[%clk 0:01:38.2]}
50. Rb3 {[%clk 0:00:02.4]} 50... Kf6 {[%clk 0:01:38.1]} 51. g4 {[%clk
0:00:02.5]} 51... Rd2 {[%clk 0:01:36.4]} 52. Rb6+ {[%clk 0:00:02.1]} 52... Kf7
{[%clk 0:01:37]} 53. Kg5 {[%clk 0:00:02.3]} 53... Rd5+ {[%clk 0:01:37.5]} 54.
Kh6 {[%clk 0:00:02.2]} 54... Rd4 {[%clk 0:01:38.1]} 55. Rxg6 {[%clk 0:00:01.7]}
55... Rxf4 {[%clk 0:01:38.6]} 56. Rg5 {[%clk 0:00:01.4]} 56... Ra4 {[%clk
0:01:38.8]} 57. Rf5+ {[%clk 0:00:01.3]} 57... Kg8 {[%clk 0:01:39.3]} 58. Kg6
{[%clk 0:00:01.6]} 58... Rxa2 {[%clk 0:01:39.8]} 59. Rb5 {[%clk 0:00:01.9]}
59... Kf8 {[%clk 0:01:40.4]} 60. Rb8+ {[%clk 0:00:02]} 60... Ke7 {[%clk
0:01:40.9]} 61. g5 {[%clk 0:00:02.9]} 61... Kd6 {[%clk 0:01:40.6]} 62. Kg7
{[%clk 0:00:02.8]} 62... Kc5 {[%clk 0:01:41.2]} 63. g6 {[%clk 0:00:03.3]} 63...
a4 {[%clk 0:01:41.8]} 64. Kf7 {[%clk 0:00:03.8]} 64... Rf2+ {[%clk 0:01:41.6]}
65. Kg8 {[%clk 0:00:04.4]} 65... a3 {[%clk 0:01:40.1]} 66. Ra8 {[%clk
0:00:04.6]} 66... Kb4 {[%clk 0:01:40.5]} 67. g7 {[%clk 0:00:05.1]} 67... Kb3
{[%clk 0:01:41.1]} 68. Kh7 {[%clk 0:00:05.5]} 68... Rh2+ {[%clk 0:01:41.6]} 69.
Kg6 {[%clk 0:00:06.1]} 69... Rg2+ {[%clk 0:01:41.6]} 70. Kf7 {[%clk 0:00:06.5]}
70... a2 {[%clk 0:01:41.5]} 71. Rxa2 {[%clk 0:00:06.1]} 71... Kxa2 {[%clk
0:01:41.6]} 72. g8=Q {[%clk 0:00:06.4]} 72... Rxg8 {[%clk 0:01:42.2]} 73. Kxg8
{[%clk 0:00:07.3]} 1/2-1/2

[Event "Early-Titled-Tuesday-Blitz-April-23-2024"]
[Site "Chess.com"]
[Date "2024.04.23"]
[Round "7"]
[White "Sam_ChessMood"]
[Black "Eagle_2019"]
[Result "1-0"]
[WhiteElo "2974"]
[BlackElo "2856"]
[TimeControl "180+1"]
[EndTime "9:20:01 PDT"]
[Termination "Sam_ChessMood won by resignation"]

1. d4 {[%clk 0:02:59.4]} 1... d5 {[%clk 0:02:59.5]} 2. c4 {[%clk 0:02:59.5]}
2... e6 {[%clk 0:02:59.5]} 3. Nf3 {[%clk 0:02:59]} 3... Nf6 {[%clk 0:02:59.6]}
4. Nc3 {[%clk 0:02:58.4]} 4... c6 {[%clk 0:02:59.1]} 5. e3 {[%clk 0:02:57]} 5...
Nbd7 {[%clk 0:02:59.3]} 6. Qc2 {[%clk 0:02:57.3]} 6... Bd6 {[%clk 0:02:59.1]} 7.
g4 {[%clk 0:02:57.4]} 7... h6 {[%clk 0:02:58.2]} 8. g5 {[%clk 0:02:52.1]} 8...
hxg5 {[%clk 0:02:57.6]} 9. Nxg5 {[%clk 0:02:52.4]} 9... dxc4 {[%clk 0:02:52.5]}
10. Bxc4 {[%clk 0:02:47.2]} 10... b5 {[%clk 0:02:52.7]} 11. Bxe6 {[%clk
0:02:43.7]} 11... O-O {[%clk 0:02:03.4]} 12. Bb3 {[%clk 0:02:21.3]} 12... Nb6
{[%clk 0:01:50.2]} 13. Bd2 {[%clk 0:01:48.7]} 13... a5 {[%clk 0:01:46]} 14. a4
{[%clk 0:01:39.6]} 14... Bg4 {[%clk 0:01:25.3]} 15. Rg1 {[%clk 0:01:36.2]} 15...
Qd7 {[%clk 0:01:23.8]} 16. Nce4 {[%clk 0:01:29.4]} 16... Nxe4 {[%clk 0:01:22]}
17. Qxe4 {[%clk 0:01:27]} 17... Bf5 {[%clk 0:01:20.4]} 18. Qh4 {[%clk
0:01:26.1]} 18... Nc4 {[%clk 0:01:16.9]} 19. Bc3 {[%clk 0:01:18.7]} 19... Bb4
{[%clk 0:01:11.6]} 20. Ne4 {[%clk 0:00:51.5]} 20... Bxe4 {[%clk 0:01:07.2]} 21.
Qxe4 {[%clk 0:00:52.4]} 21... Rfe8 {[%clk 0:01:05.2]} 22. Qf4 {[%clk 0:00:52.1]}
22... Bxc3+ {[%clk 0:00:54.2]} 23. bxc3 {[%clk 0:00:52]} 23... Re6 {[%clk
0:00:48.1]} 24. Ke2 {[%clk 0:00:51.7]} 24... Rae8 {[%clk 0:00:46.5]} 25. Rg3
{[%clk 0:00:49.2]} 25... g6 {[%clk 0:00:42]} 26. Rag1 {[%clk 0:00:48.6]} 26...
Qe7 {[%clk 0:00:39.8]} 27. Bc2 {[%clk 0:00:32.2]} 27... Kg7 {[%clk 0:00:37.2]}
28. Rh3 {[%clk 0:00:28.7]} 28... Rh8 {[%clk 0:00:36.9]} 29. Rxh8 {[%clk
0:00:28.3]} 29... Kxh8 {[%clk 0:00:37.8]} 30. Bd3 {[%clk 0:00:27.8]} 30... Kg7
{[%clk 0:00:35.8]} 31. h4 {[%clk 0:00:27.5]} 31... Rf6 {[%clk 0:00:26.6]} 32.
Qg3 {[%clk 0:00:14.2]} 32... Qa3 {[%clk 0:00:22.6]} 33. Bxc4 {[%clk 0:00:14.3]}
33... bxc4 {[%clk 0:00:21]} 34. h5 {[%clk 0:00:14.8]} 34... Qb2+ {[%clk
0:00:17.8]} 35. Kf1 {[%clk 0:00:14.5]} 35... Qb1+ {[%clk 0:00:16.9]} 36. Kg2
{[%clk 0:00:12.8]} 36... Qe4+ {[%clk 0:00:17.1]} 37. Kf1 {[%clk 0:00:09.6]}
37... Qxe3 {[%clk 0:00:14.2]} 38. Qxe3 {[%clk 0:00:09.1]} 1-0

[Event "Early-Titled-Tuesday-Blitz-April-23-2024"]
[Site "Chess.com"]
[Date "2024.04.23"]
[Round "7"]
[White "Matols"]
[Black "aljado"]
[Result "1-0"]
[WhiteElo "2376"]
[BlackElo "2160"]
[TimeControl "180+1"]
[EndTime "9:20:01 PDT"]
[Termination "Matols won on time"]

1. d4 {[%clk 0:03:00.9]} 1... Nf6 {[%clk 0:02:59.1]} 2. c4 {[%clk 0:03:01.4]}
2... c5 {[%clk 0:02:58.9]} 3. d5 {[%clk 0:03:01.2]} 3... b5 {[%clk 0:02:58.8]}
4. cxb5 {[%clk 0:03:02.1]} 4... a6 {[%clk 0:02:58.8]} 5. bxa6 {[%clk 0:03:03]}
5... Bxa6 {[%clk 0:02:58.6]} 6. Nc3 {[%clk 0:03:03.6]} 6... d6 {[%clk
0:02:58.6]} 7. Nf3 {[%clk 0:03:04.2]} 7... g6 {[%clk 0:02:58.6]} 8. g3 {[%clk
0:03:04.7]} 8... Bg7 {[%clk 0:02:58.5]} 9. Bg2 {[%clk 0:03:05.3]} 9... O-O
{[%clk 0:02:58.4]} 10. O-O {[%clk 0:03:05.9]} 10... Nbd7 {[%clk 0:02:57.9]} 11.
Rb1 {[%clk 0:03:06.2]} 11... Nb6 {[%clk 0:02:54.9]} 12. b3 {[%clk 0:03:05.7]}
12... Qc7 {[%clk 0:02:43.3]} 13. a4 {[%clk 0:02:47.9]} 13... Rfb8 {[%clk
0:02:40.3]} 14. Ne1 {[%clk 0:02:42.5]} 14... Qd7 {[%clk 0:02:18.7]} 15. h3
{[%clk 0:02:38.3]} 15... Qf5 {[%clk 0:02:14.9]} 16. Bb2 {[%clk 0:02:21]} 16...
Nbd7 {[%clk 0:01:57.9]} 17. Ba1 {[%clk 0:02:12.2]} 17... Ne5 {[%clk 0:01:52.6]}
18. Nc2 {[%clk 0:02:02.1]} 18... h5 {[%clk 0:01:35.2]} 19. f4 {[%clk 0:01:44.8]}
19... Neg4 {[%clk 0:01:21.8]} 20. hxg4 {[%clk 0:01:41.4]} 20... Nxg4 {[%clk
0:01:21.6]} 21. e4 {[%clk 0:01:11.1]} 21... Qd7 {[%clk 0:01:19.5]} 22. Re1
{[%clk 0:01:10]} 22... f5 {[%clk 0:01:10]} 23. exf5 {[%clk 0:00:58.4]} 23...
Qxf5 {[%clk 0:01:07.3]} 24. Be4 {[%clk 0:00:53.6]} 24... Qf7 {[%clk 0:01:04.2]}
25. Kg2 {[%clk 0:00:50.9]} 25... Rb7 {[%clk 0:00:30.2]} 26. Ne3 {[%clk
0:00:49.3]} 26... Nxe3+ {[%clk 0:00:27]} 27. Rxe3 {[%clk 0:00:50.2]} 27... Rab8
{[%clk 0:00:24.7]} 28. Qc2 {[%clk 0:00:48.5]} 28... Kh7 {[%clk 0:00:19.7]} 29.
f5 {[%clk 0:00:46]} 29... gxf5 {[%clk 0:00:15.5]} 30. Bxf5+ {[%clk 0:00:46.9]}
30... Kh8 {[%clk 0:00:14.9]} 31. Nb5 {[%clk 0:00:34]} 31... Bxb5 {[%clk
0:00:13.7]} 32. axb5 {[%clk 0:00:34]} 32... Rxb5 {[%clk 0:00:13.9]} 33. Bxg7+
{[%clk 0:00:31.5]} 33... Qxg7 {[%clk 0:00:13.4]} 34. Rh1 {[%clk 0:00:30.2]}
34... Kg8 {[%clk 0:00:11.3]} 35. Be6+ {[%clk 0:00:29]} 35... Kf8 {[%clk
0:00:10.6]} 36. Qf5+ {[%clk 0:00:27.6]} 36... Ke8 {[%clk 0:00:08]} 37. Bd7+
{[%clk 0:00:25.5]} 37... Kd8 {[%clk 0:00:07]} 38. Bxb5 {[%clk 0:00:25.5]} 38...
Rxb5 {[%clk 0:00:06.8]} 39. Rxh5 {[%clk 0:00:24.6]} 39... Qb2+ {[%clk
0:00:05.9]} 40. Kh3 {[%clk 0:00:24.6]} 40... Rb4 {[%clk 0:00:02.9]} 41. Rh8+
{[%clk 0:00:24.1]} 1-0